fUST/lending_fUST_20250903
["ID","MTS","AMOUNT","RATE_DAILY","PERIOD"]
[383271762,1756897854379,-500.0,0.00015048,2]
[383271763,1756897854388,-500.0,0.00015048,2]
[383271764,1756897854398,-500.0,0.00015048,2]
[383271765,1756897854407,-500.0,0.00015048,2]
[383271766,1756897854418,-500.0,0.00015048,2]
[383271767,1756897854427,-151.0,0.00015067,2]
[383271768,1756897854436,-251.321117,0.00015067,2]
[383271769,1756897854445,-251.321117,0.00015067,2]
[383271770,1756897854454,-251.321117,0.00015067,2]
[383271771,1756897854463,-251.321117,0.00015067,2]
[383271772,1756897854473,-480.0,0.00015067,2]
[383271773,1756897854482,-189.44895,0.00015067,2]
[383271774,1756897854492,-189.44895,0.00015067,2]
[383271775,1756897854501,-189.44895,0.00015067,2]
[383271776,1756897854510,-189.44895,0.00015067,2]
[383271777,1756897854519,-336.868006,0.00015067,2]
[383271778,1756897854529,-151.0,0.00015067,2]
[383271779,1756897854538,-151.0,0.00015067,2]
[383271780,1756897854547,-151.0,0.00015067,2]
[383271781,1756897854557,-151.0,0.00015067,2]
[383271782,1756897854567,-480.0,0.00015067,2]
[383271783,1756897854576,-480.0,0.00015068,2]
[383271784,1756897854585,-480.0,0.00015068,2]
[383271785,1756897854594,-151.0,0.00015068,2]
[383271786,1756897854603,-385.6,0.00015068,2]
[383271787,1756897854613,-480.0,0.00015068,2]
[383271788,1756897854623,-481.37,0.00015068,2]
[383271789,1756897854632,-480.0,0.00015068,2]
[383271790,1756897854641,-550.63,0.00015068,2]
[383271791,1756897854650,-480.0,0.00015068,2]
[383271792,1756897854660,-327.0,0.00015068,2]
[383271793,1756897854669,-327.0,0.00015068,2]
[383271794,1756897854679,-480.0,0.00015068,2]
[383271795,1756897854688,-443.76,0.00015068,2]
[383271796,1756897854698,-480.0,0.00015068,2]
[383271797,1756897854709,-480.0,0.00015068,2]
[383271798,1756897854718,-480.0,0.00015068,2]
[383271799,1756897854728,-480.0,0.00015068,2]
[383271800,1756897854737,-480.0,0.00015068,2]
[383271801,1756897854746,-480.0,0.00015068,2]
[383271802,1756897854755,-480.0,0.00015068,2]
[383271803,1756897854764,-271.15,0.00015068,2]
[383271804,1756897854773,-409.46,0.00015068,2]
[383271805,1756897854782,-208.44,0.00015068,2]
[383271806,1756897854791,-480.0,0.00015068,2]
[383271807,1756897854800,-1768.0,0.00015068,2]
[383271808,1756897854810,-1768.0,0.00015068,2]
[383271809,1756897854818,-1768.0,0.00015068,2]
[383271810,1756897854826,-1768.0,0.00015068,2]
[383271811,1756897854835,-1768.0,0.00015068,2]
[383271812,1756897854843,-1768.0,0.00015068,2]
[383271813,1756897854851,-1768.0,0.00015068,2]
[383271814,1756897854860,-1768.0,0.00015068,2]
[383271815,1756897854870,-1143.84922548,0.00015068,2]
[383271816,1756897854879,-1768.0,0.00015068,2]
[383271817,1756897854889,-480.0,0.00015068,2]
[383271818,1756897854898,-1768.0,0.00015068,2]
[383271819,1756897854908,-200.92,0.00015068,2]
[383271820,1756897854917,-222.46,0.00015068,2]
[383271821,1756897854926,-480.0,0.00015068,2]
[383271822,1756897854938,-341.88,0.00015068,2]
[383271823,1756897854947,-327.0,0.00015068,2]
[383271824,1756897854957,-327.0,0.00015068,2]
[383271825,1756897854966,-275.33198416,0.00015068,2]
[383271826,1756897854975,-151.0,0.00015068,2]
[383271827,1756897854985,-327.0,0.00015068,2]
[383271829,1756897854995,-151.0,0.00015068,2]
[383271831,1756897855004,-589.23,0.00015068,2]
[383271833,1756897855015,-201.631286,0.00015068,2]
[383271835,1756897855024,-201.631286,0.00015068,2]
[383271837,1756897855033,-201.631286,0.00015068,2]
[383271839,1756897855042,-151.0,0.00015068,2]
[383271840,1756897855051,-201.631286,0.00015068,2]
[383271842,1756897855060,-151.0,0.00015068,2]
[383271844,1756897855069,-151.0,0.00015068,2]
[383271846,1756897855079,-245.226559,0.00015068,2]
[383271848,1756897855088,-245.226559,0.00015068,2]
[383271850,1756897855097,-480.0,0.00015068,2]
[383271852,1756897855106,-245.226559,0.00015068,2]
[383271854,1756897855116,-480.0,0.00015068,2]
[383271856,1756897855125,-245.226559,0.00015068,2]
[383271858,1756897855134,-151.0,0.00015068,2]
[383271860,1756897855143,-329.0,0.00015068,2]
[383271861,1756897855152,-610.8726,0.00015068,2]
[383271863,1756897855162,-610.8726,0.00015068,2]
[383271865,1756897855171,-610.8726,0.00015068,2]
[383271867,1756897855180,-610.8726,0.00015068,2]
[383271869,1756897855189,-480.0,0.00015068,2]
[383271871,1756897855198,-639.45,0.00015068,2]
[383271873,1756897855208,-480.0,0.00015068,2]
[383271875,1756897855217,-167.499535,0.00015068,2]
[383271877,1756897855226,-167.499535,0.00015068,2]
[383271879,1756897855236,-167.499535,0.00015068,2]
[383271881,1756897855245,-167.499535,0.00015068,2]
[383271882,1756897855254,-798.91,0.00015068,2]
[383271884,1756897855263,-599.17,0.00015068,2]
[383271886,1756897855273,-606.84,0.00015068,2]
[383271888,1756897855285,-480.0,0.00015068,2]
[383271890,1756897855295,-1156.36,0.00015068,2]
[383271892,1756897855305,-558.17,0.00015068,2]
[383271894,1756897855314,-480.0,0.00015068,2]
[383271896,1756897855324,-480.0,0.00015068,2]
[383271898,1756897855333,-480.0,0.00015068,2]
[383271900,1756897855343,-480.0,0.00015068,2]
[383271902,1756897855353,-480.0,0.00015068,2]
[383271904,1756897855363,-584.2,0.00015068,2]
[383271906,1756897855372,-2009.05,0.00015068,2]
[383271908,1756897855381,-1120.12,0.00015068,2]
[383271910,1756897855391,-480.0,0.00015068,2]
[383271912,1756897855400,-559.04,0.00015068,2]
[383271914,1756897855409,-480.0,0.00015068,2]
[383271916,1756897855418,-480.0,0.00015068,2]
[383271917,1756897855428,-2109.48,0.00015068,2]
[383271919,1756897855437,-480.0,0.00015068,2]
[383271921,1756897855446,-480.0,0.00015068,2]
[383271923,1756897855455,-532.22,0.00015068,2]
[383271925,1756897855464,-516.40320907,0.00015068,2]
[383271927,1756897855473,-480.0,0.00015068,2]
[383271929,1756897855482,-480.0,0.00015068,2]
[383271931,1756897855491,-306.37,0.00015068,2]
[383271933,1756897855501,-480.0,0.00015068,2]
[383271935,1756897855510,-480.0,0.00015068,2]
[383271937,1756897855519,-1251.9,0.00015068,2]
[383271939,1756897855528,-480.0,0.00015068,2]
[383271940,1756897855538,-471.66705573,0.00015068,2]
[383271942,1756897855548,-1176.61,0.00015068,2]
[383271944,1756897855557,-151.0,0.00015068,2]
[383271946,1756897855567,-480.0,0.00015068,2]
[383271948,1756897855576,-480.0,0.00015068,2]
[383271950,1756897855586,-480.0,0.00015068,2]
[383271952,1756897855595,-480.0,0.00015068,2]
[383271954,1756897855604,-584.45,0.00015068,2]
[383271956,1756897855613,-634.77,0.00015068,2]
[383271958,1756897855622,-480.0,0.00015068,2]
[383271960,1756897855632,-426.23889724,0.00015068,2]
[383271962,1756897855642,-480.0,0.00015068,2]
[383271964,1756897855651,-480.0,0.00015068,2]
[383271966,1756897855660,-480.0,0.00015068,2]
[383271967,1756897855670,-181.42,0.00015068,2]
[383271969,1756897855679,-480.0,0.00015068,2]
[383271971,1756897855689,-480.0,0.00015068,2]
[383271973,1756897855698,-480.0,0.00015068,2]
[383271975,1756897855707,-151.0,0.00015068,2]
[383271977,1756897855717,-327.47732788,0.00015068,2]
[383271979,1756897855727,-480.0,0.00015068,2]
[383271981,1756897855736,-1865.21,0.00015068,2]
[383271983,1756897855746,-401.58042524,0.00015068,2]
[383272016,1756897856062,-442.38106077,0.00013698,2]
[383272017,1756897856071,-480.0,0.00013698,2]
[383272019,1756897856081,-480.0,0.00013698,2]
[383272021,1756897856091,-480.0,0.00013972,2]
[383272023,1756897856100,-480.0,0.00014246,2]
[383272025,1756897856110,-78.41957476,0.00015068,2]
[383272027,1756897856120,-480.0,0.00015068,2]
[383272029,1756897856129,-954.69,0.00015068,2]
[383272031,1756897856139,-480.0,0.00015068,2]
[383272033,1756897856148,-573.455309,0.00015068,2]
[383272035,1756897856158,-151.0,0.00015068,2]
[383272037,1756897856168,-746.79,0.00015068,2]
[383272039,1756897856177,-573.455309,0.00015068,2]
[383272041,1756897856187,-573.455309,0.00015068,2]
[383272043,1756897856196,-480.0,0.00015068,2]
[383272045,1756897856206,-573.455309,0.00015068,2]
[383272047,1756897856216,-480.0,0.00015068,2]
[383272049,1756897856227,-480.0,0.00015068,2]
[383272050,1756897856236,-1500.0,0.00015068,2]
[383272052,1756897856246,-1500.0,0.00015068,2]
[383272054,1756897856255,-500.0,0.00015083,2]
[383272056,1756897856265,-500.0,0.00015083,2]
[383272058,1756897856274,-500.0,0.00015116,2]
[383272060,1756897856284,-500.0,0.00015116,2]
[383272062,1756897856293,-500.0,0.00015116,2]
[383272064,1756897856302,-500.0,0.00015116,2]
[383272066,1756897856311,-500.0,0.00015116,2]
[383272068,1756897856320,-500.0,0.00015116,2]
[383272080,1756897856330,-500.0,0.00015116,2]
[383272082,1756897856444,-500.0,0.00015116,2]
[383272084,1756897856454,-500.0,0.00015116,2]
[383272086,1756897856463,-500.0,0.00015116,2]
[383272088,1756897856472,-500.0,0.00015116,2]
[383272090,1756897856482,-199.80092547,0.00015116,2]
[383272092,1756897856490,-160.54520718,0.00015116,2]
[383272093,1756897856499,-245.0,0.00015126,2]
[383272095,1756897856509,-31.25511695,0.00015139,2]
[383272150,1756897857121,-0.00633129,0.00015139,2]
[383272162,1756897857267,-327.83103387,0.00013598,2]
[383272163,1756897857276,-92.16896613,0.00013698,2]
[383273045,1756897867241,259.13,0.00013494,30]
[383274981,1756897904168,1833.89302271,0.00013397,2]
[383274982,1756897904191,10000.01,0.00013397,2]
[383274983,1756897904214,8464.20228034,0.00013397,2]
[383274984,1756897921842,327.83103384,0.00013395,2]
[383275023,1756897944838,385.66746824,0.00013361,2]
[383275024,1756897973687,157.919981,0.000245,30]
[383275033,1756898065687,822.30921758,0.00013397,2]
[383275034,1756898065709,10000.01,0.00013397,2]
[383275035,1756898065731,7186.00328382,0.00013397,2]
[383275036,1756898079488,327.83103384,0.00013395,2]
[383275037,1756898104943,327.83103384,0.00013395,2]
[383275038,1756898128313,327.83103384,0.00013395,2]
[383275252,1756898298508,327.83103384,0.00013395,2]
[383275254,1756898416895,1502.68258082,0.00012496,2]
[383275255,1756898416917,929.59822208,0.00012496,2]
[383275296,1756898519786,172.16896616,0.00013327,2]
[383275449,1756898840548,8898.24281176,0.000133,2]
[383275450,1756898840573,10000.01,0.000133,2]
[383275451,1756898840595,10000.01,0.000133,2]
[383275452,1756898840619,10000.01,0.000133,2]
[383275453,1756898840642,10000.01,0.000133,2]
[383275454,1756898840664,10000.01,0.000133,2]
[383275455,1756898840685,3601.70718824,0.000133,2]
[383275456,1756898856914,262.26482708,0.00013327,2]
[383275457,1756898858743,290.67,0.00012329,2]
[383275458,1756898865655,262.26482708,0.00013327,2]
[383275459,1756898869151,242.22,0.00012329,2]
[383275466,1756898879574,201.85,0.00012329,2]
[383275468,1756898881362,262.26482708,0.00013327,2]
[383275475,1756898889378,262.26482708,0.00013327,2]
[383275476,1756898889983,168.21,0.00012329,2]
[383275482,1756898900387,841.09,0.00012329,2]
[383275490,1756898905561,262.26482708,0.00013327,2]
[383275494,1756898913504,262.26482708,0.00013327,2]
[383275499,1756898928875,262.26482708,0.00013327,2]
[383275502,1756898934073,260.75435944,0.00013362,2]
[383275504,1756898936915,262.26482708,0.00013327,2]
[383275510,1756898953181,262.26482708,0.00013327,2]
[383275560,1756898961787,262.26482708,0.00013327,2]
[383275617,1756898977217,262.26482708,0.00013327,2]
[383275634,1756898985260,262.26482708,0.00013327,2]
[383275642,1756899001918,262.26482708,0.00013327,2]
[383275648,1756899009848,262.26482708,0.00013327,2]
[383275649,1756899026075,262.26482708,0.00013327,2]
[383275660,1756899034901,262.26482708,0.00013327,2]
[383275661,1756899036069,-262.26482708,0.00013462,2]
[383275662,1756899036080,-737.73517292,0.00013597,2]
[383275669,1756899037705,-1043.32395614,0.00013597,2]
[383275670,1756899037715,-361.62853876,0.00013598,2]
[383275671,1756899037726,-1200.0,0.00013696,2]
[383275672,1756899037735,-300.0,0.00013696,2]
[383275673,1756899037745,-500.0,0.00013697,2]
[383275674,1756899037755,-500.0,0.00013697,2]
[383275676,1756899037764,-500.0,0.00013697,2]
[383275677,1756899037773,-500.0,0.00013697,2]
[383275679,1756899037783,-500.0,0.00013697,2]
[383275681,1756899037793,-500.0,0.00013697,2]
[383275682,1756899037803,-500.0,0.00013697,2]
[383275683,1756899037812,-500.0,0.00013697,2]
[383275684,1756899037822,-500.0,0.00013697,2]
[383275685,1756899037831,-500.0,0.00013697,2]
[383275687,1756899037841,-500.0,0.00013697,2]
[383275689,1756899037851,-500.0,0.00013697,2]
[383275691,1756899037861,-643.40127304,0.00013697,2]
[383275694,1756899037871,-500.0,0.00013697,2]
[383275696,1756899037881,-500.0,0.00013697,2]
[383275698,1756899037890,-500.0,0.00013697,2]
[383275700,1756899037900,-500.0,0.00013697,2]
[383275702,1756899037909,-277.07161935,0.00013697,2]
[383275704,1756899037919,-500.0,0.00013697,2]
[383275706,1756899037928,-500.0,0.00013697,2]
[383275708,1756899037937,-500.0,0.00013697,2]
[383275710,1756899037947,-622.1225796,0.00013697,2]
[383275712,1756899037956,-500.0,0.00013697,2]
[383275714,1756899037965,-480.0,0.00013698,2]
[383275716,1756899037975,-481.37,0.00013698,2]
[383275718,1756899037984,-394.05124137,0.00013698,2]
[383275720,1756899037995,-85.94875863,0.00013698,2]
[383275722,1756899038005,-480.0,0.00013698,2]
[383275724,1756899038014,-186.28,0.00013698,2]
[383275726,1756899038024,-480.0,0.00013698,2]
[383275728,1756899038033,-480.0,0.00013698,2]
[383275729,1756899038043,-480.0,0.00013698,2]
[383275730,1756899038053,-524.23,0.00013698,2]
[383275731,1756899038063,-53.74816259,0.00013698,2]
[383275734,1756899038075,-426.25183741,0.00013698,2]
[383275735,1756899038085,-480.0,0.00013698,2]
[383275737,1756899038094,-480.0,0.00013698,2]
[383275738,1756899038103,-480.0,0.00013698,2]
[383275740,1756899038112,-139.16302742,0.00013698,2]
[383275741,1756899038123,-342.85996839,0.00013698,2]
[383275743,1756899038131,-480.0,0.00013698,2]
[383275744,1756899038139,-483.24849934,0.00013698,2]
[383275746,1756899038148,-528.65,0.00013698,2]
[383275747,1756899038157,-480.0,0.00013698,2]
[383275748,1756899038167,-111.05465462,0.00013698,2]
[383275821,1756899039824,-491.51534538,0.00013698,2]
[383275823,1756899039834,-480.0,0.00013698,2]
[383275825,1756899039844,-480.0,0.00013698,2]
[383275827,1756899039854,-480.0,0.00013698,2]
[383275829,1756899039863,-480.0,0.00013698,2]
[383275831,1756899039873,-480.0,0.00013698,2]
[383275833,1756899039883,-480.0,0.00013698,2]
[383275835,1756899039892,-480.0,0.00013698,2]
[383275837,1756899039901,-480.0,0.00013698,2]
[383275839,1756899039911,-480.0,0.00013698,2]
[383275841,1756899039920,-480.0,0.00013698,2]
[383275843,1756899039930,-500.0,0.00013698,2]
[383275845,1756899039939,-480.0,0.00013698,2]
[383275847,1756899039948,-480.0,0.00013698,2]
[383275849,1756899039957,-480.0,0.00013698,2]
[383275851,1756899039966,-480.0,0.00013698,2]
[383275853,1756899039976,-480.0,0.00013698,2]
[383275856,1756899039986,-480.0,0.00013698,2]
[383275859,1756899039996,-480.0,0.00013698,2]
[383275861,1756899040006,-290.55777643,0.00013698,2]
[383275864,1756899040018,-189.44222357,0.00013698,2]
[383275866,1756899040028,-480.0,0.00013698,2]
[383275868,1756899040038,-174.19368127,0.00013698,2]
[383275870,1756899040050,-309.84646532,0.00013698,2]
[383275872,1756899040059,-480.0,0.00013698,2]
[383275874,1756899040069,-480.0,0.00013698,2]
[383275876,1756899040078,-480.0,0.00013698,2]
[383275878,1756899040087,-480.0,0.00013698,2]
[383275880,1756899040097,-480.0,0.00013698,2]
[383275888,1756899040250,-480.0,0.00013698,2]
[383275889,1756899040261,-480.0,0.00013698,2]
[383275890,1756899040270,-480.0,0.00013698,2]
[383275891,1756899040280,-293.37,0.00013698,2]
[383275892,1756899040289,-480.0,0.00013698,2]
[383275893,1756899040299,-480.0,0.00013698,2]
[383275894,1756899040308,-480.0,0.00013698,2]
[383275895,1756899040318,-481.56346662,0.00013698,2]
[383275896,1756899040327,-480.0,0.00013698,2]
[383275897,1756899040336,-480.0,0.00013698,2]
[383275898,1756899040346,-480.0,0.00013698,2]
[383275899,1756899040356,-480.0,0.00013698,2]
[383275900,1756899040365,-482.12818552,0.00013698,2]
[383275901,1756899040375,-500.0,0.00013698,2]
[383275902,1756899040385,-500.0,0.00013698,2]
[383275903,1756899040394,-500.0,0.00013698,2]
[383275904,1756899040403,-500.0,0.00013698,2]
[383275905,1756899040412,-211.57,0.00013698,2]
[383275906,1756899040422,-480.0,0.00013698,2]
[383275907,1756899040431,-480.0,0.00013698,2]
[383275908,1756899040440,-480.0,0.00013698,2]
[383275910,1756899040449,-480.0,0.00013698,2]
[383275912,1756899040458,-480.0,0.00013698,2]
[383275914,1756899040467,-480.0,0.00013698,2]
[383275916,1756899040477,-530.82,0.00013698,2]
[383275918,1756899040488,-480.0,0.00013698,2]
[383275920,1756899040498,-480.0,0.00013698,2]
[383275922,1756899040507,-480.0,0.00013698,2]
[383275924,1756899040516,-480.0,0.00013698,2]
[383275926,1756899040527,-481.39568687,0.00013698,2]
[383275928,1756899040536,-480.0,0.00013698,2]
[383275930,1756899040546,-472.38,0.00013698,2]
[383275932,1756899040557,-480.0,0.00013698,2]
[383275934,1756899040567,-151.0,0.00013698,2]
[383275936,1756899040576,-480.0,0.00013698,2]
[383275938,1756899040585,-480.0,0.00013698,2]
[383275940,1756899040594,-387.83103387,0.00013698,2]
[383275942,1756899040604,-480.0,0.00013698,2]
[383275944,1756899040614,-480.0,0.00013698,2]
[383275945,1756899040625,-480.0,0.00013698,2]
[383275947,1756899040634,-1760.63,0.00013698,2]
[383275949,1756899040644,-480.0,0.00013698,2]
[383275951,1756899040653,-480.0,0.00013698,2]
[383275953,1756899040663,-494.86,0.00013698,2]
[383275956,1756899040676,-480.0,0.00013698,2]
[383275958,1756899040685,-480.0,0.00013698,2]
[383275960,1756899040695,-480.0,0.00013698,2]
[383275962,1756899040705,-480.0,0.00013698,2]
[383275964,1756899040715,-480.0,0.00013698,2]
[383275966,1756899040724,-480.0,0.00013698,2]
[383275968,1756899040734,-480.0,0.00013698,2]
[383275970,1756899040744,-665.76,0.00013698,2]
[383275972,1756899040753,-480.0,0.00013698,2]
[383275974,1756899040762,-480.0,0.00013698,2]
[383275976,1756899040772,-480.0,0.00013698,2]
[383275978,1756899040781,-480.0,0.00013698,2]
[383275980,1756899040791,-480.0,0.00013698,2]
[383275982,1756899040800,-480.0,0.00013698,2]
[383275984,1756899040811,-480.0,0.00013698,2]
[383275986,1756899040820,-480.0,0.00013698,2]
[383275988,1756899040830,-480.0,0.00013698,2]
[383275990,1756899040840,-480.0,0.00013698,2]
[383275992,1756899040849,-480.0,0.00013698,2]
[383275994,1756899040858,-480.0,0.00013698,2]
[383275995,1756899040867,-30.77848068,0.00013698,2]
[383276202,1756899042984,-480.0,0.00013698,2]
[383276203,1756899042994,-480.0,0.00013698,2]
[383276205,1756899043003,-480.0,0.00013698,2]
[383276207,1756899043013,-480.0,0.00013698,2]
[383276209,1756899043022,-480.0,0.00013698,2]
[383276211,1756899043031,-480.0,0.00013698,2]
[383276214,1756899043040,-461.77904097,0.00013698,2]
[383276217,1756899043050,-480.0,0.00013698,2]
[383276219,1756899043060,-480.0,0.00013698,2]
[383276221,1756899043070,-480.0,0.00013698,2]
[383276223,1756899043079,-480.0,0.00013698,2]
[383276225,1756899043089,-540.08,0.00013698,2]
[383276227,1756899043099,-480.0,0.00013698,2]
[383276229,1756899043108,-480.0,0.00013698,2]
[383276231,1756899043117,-480.0,0.00013698,2]
[383276233,1756899043127,-480.0,0.00013698,2]
[383276235,1756899043136,-933.44,0.00013698,2]
[383276237,1756899043146,-480.0,0.00013698,2]
[383276239,1756899043156,-480.0,0.00013698,2]
[383276241,1756899043165,-337.07160217,0.00013698,2]
[383276243,1756899043175,-1757.9,0.00013698,2]
[383276245,1756899043184,-567.26,0.00013698,2]
[383276247,1756899043194,-480.0,0.00013698,2]
[383276249,1756899043204,-1017.05,0.00013698,2]
[383276251,1756899043214,-480.0,0.00013698,2]
[383276253,1756899043224,-480.0,0.00013698,2]
[383276255,1756899043234,-480.0,0.00013698,2]
[383276257,1756899043244,-480.0,0.00013698,2]
[383276259,1756899043254,-480.0,0.00013698,2]
[383276261,1756899043264,-480.0,0.00013698,2]
[383276263,1756899043274,-389.07,0.00013698,2]
[383276265,1756899043283,-480.0,0.00013698,2]
[383276267,1756899043292,-480.0,0.00013698,2]
[383276269,1756899043302,-480.0,0.00013698,2]
[383276271,1756899043311,-480.0,0.00013698,2]
[383276273,1756899043321,-480.0,0.00013698,2]
[383276275,1756899043330,-480.0,0.00013698,2]
[383276277,1756899043340,-480.0,0.00013698,2]
[383276279,1756899043349,-1029.53,0.00013698,2]
[383276281,1756899043359,-480.0,0.00013698,2]
[383276283,1756899043368,-480.0,0.00013698,2]
[383276285,1756899043377,-362.202509,0.00013698,2]
[383276287,1756899043387,-480.0,0.00013698,2]
[383276289,1756899043397,-480.0,0.00013698,2]
[383276291,1756899043406,-480.0,0.00013698,2]
[383276293,1756899043416,-480.0,0.00013698,2]
[383276295,1756899043425,-480.0,0.00013698,2]
[383276297,1756899043435,-480.0,0.00013698,2]
[383276299,1756899043444,-500.0,0.00013698,2]
[383276301,1756899043454,-500.0,0.00013698,2]
[383276303,1756899043463,-582.47,0.00013698,2]
[383276305,1756899043475,-480.0,0.00013698,2]
[383276307,1756899043488,-488.36252771,0.00013698,2]
[383276309,1756899043497,-480.0,0.00013698,2]
[383276311,1756899043506,-506.57,0.00013698,2]
[383276313,1756899043515,-480.0,0.00013698,2]
[383276315,1756899043526,-511.4,0.00013698,2]
[383276317,1756899043535,-480.0,0.00013698,2]
[383276319,1756899043545,-480.0,0.00013698,2]
[383276321,1756899043555,-480.92031988,0.00013698,2]
[383276323,1756899043565,-201.43408627,0.00013698,2]
[383276325,1756899043574,-478.77495276,0.00013698,2]
[383276327,1756899043583,-480.0,0.00013698,2]
[383276329,1756899043593,-480.0,0.00013698,2]
[383276331,1756899043602,-491.03,0.00013698,2]
[383276333,1756899043611,-480.0,0.00013698,2]
[383276335,1756899043620,-480.0,0.00013698,2]
[383276337,1756899043630,-480.0,0.00013698,2]
[383276339,1756899043639,-480.0,0.00013698,2]
[383276341,1756899043649,-1095.42,0.00013698,2]
[383276343,1756899043658,-480.0,0.00013698,2]
[383276345,1756899043667,-480.0,0.00013698,2]
[383276347,1756899043680,-481.0186502,0.00013698,2]
[383276349,1756899043689,-480.0,0.00013698,2]
[383276351,1756899043699,-480.0,0.00013698,2]
[383276353,1756899043708,-480.0,0.00013698,2]
[383276355,1756899043718,-480.0,0.00013698,2]
[383276357,1756899043727,-480.0,0.00013698,2]
[383276360,1756899043737,-480.0,0.00013698,2]
[383276362,1756899043747,-480.0,0.00013698,2]
[383276364,1756899043756,-481.58661557,0.00013698,2]
[383276366,1756899043766,-480.0,0.00013698,2]
[383276368,1756899043775,-480.0,0.00013698,2]
[383276370,1756899043785,-480.0,0.00013698,2]
[383276372,1756899043794,-820.99,0.00013698,2]
[383276374,1756899043803,-480.0,0.00013698,2]
[383276376,1756899043813,-480.0,0.00013698,2]
[383276378,1756899043823,-480.0,0.00013698,2]
[383276380,1756899043833,-480.0,0.00013698,2]
[383276382,1756899043841,-480.0,0.00013698,2]
[383276384,1756899043851,-480.0,0.00013698,2]
[383276386,1756899043860,-1910.34,0.00013698,2]
[383276388,1756899043870,-480.0,0.00013698,2]
[383276390,1756899043884,-480.0,0.00013698,2]
[383276392,1756899043900,-555.43,0.00013698,2]
[383276394,1756899043909,-726.15,0.00013698,2]
[383276396,1756899043918,-480.0,0.00013698,2]
[383276398,1756899043928,-480.0,0.00013698,2]
[383276400,1756899043937,-480.0,0.00013698,2]
[383276402,1756899043947,-480.0,0.00013698,2]
[383276404,1756899043956,-505.7,0.00013698,2]
[383276406,1756899043966,-480.0,0.00013698,2]
[383276408,1756899043975,-480.0,0.00013698,2]
[383276410,1756899043984,-480.0,0.00013698,2]
[383276412,1756899043993,-480.0,0.00013698,2]
[383276414,1756899044003,-480.0,0.00013698,2]
[383276416,1756899044012,-532.87,0.00013698,2]
[383276418,1756899044021,-480.0,0.00013698,2]
[383276420,1756899044033,-480.0,0.00013698,2]
[383276422,1756899044042,-420.91621753,0.00013698,2]
[383276424,1756899044051,-480.0,0.00013698,2]
[383276426,1756899044060,-480.0,0.00013698,2]
[383276428,1756899044069,-399.54090219,0.00013698,2]
[383276430,1756899044080,-480.0,0.00013698,2]
[383276432,1756899044089,-480.0,0.00013698,2]
[383276434,1756899044098,-500.0,0.00013698,2]
[383276436,1756899044107,-472.790262,0.00013699,2]
[383276438,1756899044117,-361.62853872,0.00013804,2]
[383276440,1756899044127,-500.0,0.00013969,2]
[383276442,1756899044136,-500.0,0.00013969,2]
[383276444,1756899044146,-472.15479948,0.00013969,2]
[383276446,1756899044156,-500.0,0.00013969,2]